[Event "January 9 Late 2024"]
[Site "https://www.chess.com"]
[Date "2024.01.09"]
[Round "1"]
[White "Kuzubov, Yuriy"]
[Black "Hungaski, Robert"]
[Result "1-0"]
[Board "60"]
[TimeControl "180+1"]
[WhiteFideId "14112906"]
[BlackFideId "2021030"]
[WhiteElo "2900"]
[BlackElo "2494"]
[WhiteTeam "UKR"]
[BlackTeam "USA"]
[WhiteClock "0:00:06"]
[BlackClock "0:00:00"]

1. d4 {[%clk 0:03:00]}  Nf6 {[%clk 0:02:59]} 2. Nf3 {[%clk 0:03:01]}  d5 {[%clk 0:02:58]} 3. c4 {[%clk 0:03:01]}  dxc4 {[%clk 0:02:58]} 4. e3 {[%clk 0:03:01]}  e6 {[%clk 0:02:57]} 5. Bxc4 {[%clk 0:03:00]}  c5 {[%clk 0:02:58]} 6. O-O {[%clk 0:03:00]}  a6 {[%clk 0:02:59]} 7. b3 {[%clk 0:02:54]}  b6 {[%clk 0:02:54]} 8. Bb2 {[%clk 0:02:52]}  Bb7 {[%clk 0:02:54]} 9. Nbd2 {[%clk 0:02:51]}  Nbd7 {[%clk 0:02:53]} 10. Qe2 {[%clk 0:02:50]}  Be7 {[%clk 0:02:47]} 11. Rfd1 {[%clk 0:02:49]}  O-O {[%clk 0:02:18]} 12. Rac1 {[%clk 0:02:45]}  b5 {[%clk 0:02:14]} 13. Bd3 {[%clk 0:02:44]}  cxd4 {[%clk 0:02:05]} 14. Bxd4 {[%clk 0:02:37]}  Ba3 {[%clk 0:02:02]} 15. Rc2 {[%clk 0:02:30]}  Rc8 {[%clk 0:02:00]} 16. e4 {[%clk 0:02:20]}  Rxc2 {[%clk 0:01:56]} 17. Bxc2 {[%clk 0:02:21]}  Qc7 {[%clk 0:01:54]} 18. Nf1 {[%clk 0:02:11]}  e5 {[%clk 0:01:50]} 19. Ba1 {[%clk 0:02:04]}  Re8 {[%clk 0:01:31]} 20. Ng3 {[%clk 0:01:50]}  g6 {[%clk 0:01:24]} 21. h4 {[%clk 0:01:43]}  Bc5 {[%clk 0:01:19]} 22. Ne1 {[%clk 0:01:34]}  h5 {[%clk 0:01:16]} 23. Nd3 {[%clk 0:01:22]}  Ba7 {[%clk 0:01:16]} 24. Bb2 {[%clk 0:01:12]}  Ng4 {[%clk 0:01:13]} 25. b4 {[%clk 0:00:58]}  Nb6 {[%clk 0:00:44]} 26. Nc5 {[%clk 0:00:58]}  Nc4 {[%clk 0:00:42]} 27. Bc1 {[%clk 0:00:38]}  Bxc5 {[%clk 0:00:37]} 28. bxc5 {[%clk 0:00:38]}  Qxc5 {[%clk 0:00:37]} 29. Bb3 {[%clk 0:00:38]}  Bc8 {[%clk 0:00:31]} 30. Nf1 {[%clk 0:00:29]}  Be6 {[%clk 0:00:28]} 31. g3 {[%clk 0:00:29]}  a5 {[%clk 0:00:25]} 32. Kg2 {[%clk 0:00:29]}  a4 {[%clk 0:00:25]} 33. Bc2 {[%clk 0:00:30]}  Bc8 {[%clk 0:00:20]} 34. f3 {[%clk 0:00:29]}  Nf6 {[%clk 0:00:19]} 35. Ne3 {[%clk 0:00:26]}  Bb7 {[%clk 0:00:18]} 36. Nxc4 {[%clk 0:00:25]}  bxc4 {[%clk 0:00:19]} 37. Bg5 {[%clk 0:00:21]}  Qc6 {[%clk 0:00:15]} 38. Qe3 {[%clk 0:00:18]}  Nd7 {[%clk 0:00:13]} 39. Rd5 {[%clk 0:00:15]}  Rc8 {[%clk 0:00:11]} 40. Qc3 {[%clk 0:00:15]}  f6 {[%clk 0:00:11]} 41. Be3 {[%clk 0:00:15]}  Nb6 {[%clk 0:00:10]} 42. Rc5 {[%clk 0:00:13]}  Qd7 {[%clk 0:00:11]} 43. Rxc8+ {[%clk 0:00:13]}  Nxc8 {[%clk 0:00:12]} 44. Qxc4+ {[%clk 0:00:13]}  Qf7 {[%clk 0:00:11]} 45. Qxf7+ {[%clk 0:00:13]}  Kxf7 {[%clk 0:00:12]} 46. Bxa4 {[%clk 0:00:12]}  Nd6 {[%clk 0:00:11]} 47. Bc5 {[%clk 0:00:12]}  Nc4 {[%clk 0:00:11]} 48. Bb5 {[%clk 0:00:11]}  Nb2 {[%clk 0:00:09]} 49. Kf1 {[%clk 0:00:11]}  Bc8 {[%clk 0:00:09]} 50. Ke2 {[%clk 0:00:09]}  Be6 {[%clk 0:00:09]} 51. a4 {[%clk 0:00:09]}  Bb3 {[%clk 0:00:05]} 52. a5 {[%clk 0:00:08]}  Na4 {[%clk 0:00:03]} 53. Bb4 {[%clk 0:00:07]}  Ke6 {[%clk 0:00:03]} 54. Kd2 {[%clk 0:00:06]}  f5 {[%clk 0:00:00]} 55. a6 {[%clk 0:00:06]} 1-0

[Event "January 9 Late 2024"]
[Site "https://www.chess.com"]
[Date "2024.01.09"]
[Round "1"]
[White "Novikov, Evgenij"]
[Black "Santos Latasa, Jaime"]
[Result "0-1"]
[Board "61"]
[TimeControl "180+1"]
[WhiteFideId "4125380"]
[BlackFideId "2293307"]
[WhiteElo "2493"]
[BlackElo "2900"]
[WhiteTeam "RUS"]
[BlackTeam "ESP"]
[WhiteClock "0:00:03"]
[BlackClock "0:00:39"]

1. d4 {[%clk 0:02:57]}  Nf6 {[%clk 0:02:59]} 2. Nf3 {[%clk 0:02:56]}  g6 {[%clk 0:02:59]} 3. c4 {[%clk 0:02:56]}  Bg7 {[%clk 0:02:59]} 4. Nc3 {[%clk 0:02:56]}  O-O {[%clk 0:03:00]} 5. e4 {[%clk 0:02:56]}  d6 {[%clk 0:03:01]} 6. Be2 {[%clk 0:02:57]}  Na6 {[%clk 0:03:01]} 7. O-O {[%clk 0:02:56]}  e5 {[%clk 0:03:00]} 8. d5 {[%clk 0:02:56]}  Nc5 {[%clk 0:02:57]} 9. Qc2 {[%clk 0:02:57]}  a5 {[%clk 0:02:56]} 10. Bg5 {[%clk 0:02:57]}  h6 {[%clk 0:02:54]} 11. Be3 {[%clk 0:02:57]}  b6 {[%clk 0:02:48]} 12. Ne1 {[%clk 0:02:54]}  Nh7 {[%clk 0:02:30]} 13. Qd2 {[%clk 0:02:52]}  h5 {[%clk 0:02:27]} 14. Nd3 {[%clk 0:02:46]}  h4 {[%clk 0:02:24]} 15. Nxc5 {[%clk 0:02:41]}  bxc5 {[%clk 0:02:25]} 16. Bh6 {[%clk 0:02:34]}  f5 {[%clk 0:02:23]} 17. Bxg7 {[%clk 0:02:32]}  Kxg7 {[%clk 0:02:23]} 18. f4 {[%clk 0:02:30]}  exf4 {[%clk 0:02:00]} 19. exf5 {[%clk 0:02:09]}  g5 {[%clk 0:01:55]} 20. g4 {[%clk 0:02:09]}  fxg3 {[%clk 0:01:40]} 21. hxg3 {[%clk 0:02:08]}  Bxf5 {[%clk 0:01:39]} 22. gxh4 {[%clk 0:01:52]}  gxh4 {[%clk 0:01:40]} 23. Nb5 {[%clk 0:01:26]}  Bd7 {[%clk 0:01:34]} 24. Qc3+ {[%clk 0:01:23]}  Kh6 {[%clk 0:01:33]} 25. Rxf8 {[%clk 0:01:13]}  Nxf8 {[%clk 0:01:26]} 26. Rf1 {[%clk 0:01:09]}  Qg5+ {[%clk 0:01:24]} 27. Kh1 {[%clk 0:01:06]}  Bxb5 {[%clk 0:01:22]} 28. Qh8+ {[%clk 0:00:54]}  Nh7 {[%clk 0:01:09]} 29. Qxa8 {[%clk 0:00:54]}  Qe3 {[%clk 0:01:09]} 30. Qh8 {[%clk 0:00:31]}  Be8 {[%clk 0:00:44]} 31. Rg1 {[%clk 0:00:20]}  Bg6 {[%clk 0:00:38]} 32. Rg2 {[%clk 0:00:11]}  h3 {[%clk 0:00:35]} 33. Rxg6+ {[%clk 0:00:10]}  Kxg6 {[%clk 0:00:35]} 34. Qg8+ {[%clk 0:00:10]}  Kh6 {[%clk 0:00:35]} 35. Qg4 {[%clk 0:00:08]}  Nf6 {[%clk 0:00:33]} 36. Qf3 {[%clk 0:00:05]}  Qxf3+ {[%clk 0:00:31]} 37. Bxf3 {[%clk 0:00:06]}  Kg5 {[%clk 0:00:32]} 38. Kh2 {[%clk 0:00:06]}  Kh4 {[%clk 0:00:33]} 39. b3 {[%clk 0:00:05]}  Ng4+ {[%clk 0:00:33]} 40. Bxg4 {[%clk 0:00:03]}  Kxg4 {[%clk 0:00:34]} 41. a3 {[%clk 0:00:02]}  Kh4 {[%clk 0:00:34]} 42. a4 {[%clk 0:00:01]}  Kg4 {[%clk 0:00:34]} 43. Kg1 {[%clk 0:00:01]}  Kf3 {[%clk 0:00:33]} 44. Kh2 {[%clk 0:00:01]}  Ke3 {[%clk 0:00:34]} 45. Kxh3 {[%clk 0:00:02]}  Kd3 {[%clk 0:00:35]} 46. Kg4 {[%clk 0:00:03]}  Kc3 {[%clk 0:00:35]} 47. Kf5 {[%clk 0:00:03]}  Kxb3 {[%clk 0:00:36]} 48. Ke6 {[%clk 0:00:03]}  Kxc4 {[%clk 0:00:36]} 49. Kd7 {[%clk 0:00:03]}  Kxd5 {[%clk 0:00:37]} 50. Kxc7 {[%clk 0:00:04]}  c4 {[%clk 0:00:37]} 51. Kb6 {[%clk 0:00:05]}  c3 {[%clk 0:00:38]} 52. Kxa5 {[%clk 0:00:03]}  c2 {[%clk 0:00:39]} 0-1

[Event "January 9 Late 2024"]
[Site "https://www.chess.com"]
[Date "2024.01.09"]
[Round "1"]
[White "Bazilius, Augustinas"]
[Black "Melkumyan, Hrant"]
[Result "0-1"]
[Board "63"]
[TimeControl "180+1"]
[WhiteFideId "12832251"]
[BlackFideId "13302485"]
[WhiteElo "2488"]
[BlackElo "2894"]
[WhiteTeam "LTU"]
[BlackTeam "ARM"]
[WhiteClock "0:00:01"]
[BlackClock "0:01:01"]

1. d4 {[%clk 0:03:00]}  d5 {[%clk 0:02:58]} 2. c4 {[%clk 0:03:00]}  e6 {[%clk 0:02:58]} 3. Nf3 {[%clk 0:03:01]}  Nf6 {[%clk 0:02:58]} 4. g3 {[%clk 0:03:02]}  dxc4 {[%clk 0:02:51]} 5. Qa4+ {[%clk 0:02:58]}  Nbd7 {[%clk 0:02:49]} 6. Qxc4 {[%clk 0:02:59]}  a6 {[%clk 0:02:46]} 7. Bg2 {[%clk 0:02:54]}  b5 {[%clk 0:02:45]} 8. Qc6 {[%clk 0:02:55]}  Ra7 {[%clk 0:02:45]} 9. O-O {[%clk 0:02:50]}  Bb7 {[%clk 0:02:45]} 10. Qc2 {[%clk 0:02:47]}  c5 {[%clk 0:02:39]} 11. dxc5 {[%clk 0:02:43]}  Bxc5 {[%clk 0:02:38]} 12. Nc3 {[%clk 0:02:41]}  O-O {[%clk 0:02:37]} 13. Rd1 {[%clk 0:02:35]}  Qa8 {[%clk 0:02:32]} 14. Bf4 {[%clk 0:02:16]}  Rc8 {[%clk 0:02:31]} 15. Qd2 {[%clk 0:02:00]}  b4 {[%clk 0:02:28]} 16. Na4 {[%clk 0:02:00]}  Bxf2+ {[%clk 0:02:19]} 17. Kf1 {[%clk 0:01:43]}  Bc6 {[%clk 0:02:07]} 18. Nh4 {[%clk 0:01:22]}  Bxg2+ {[%clk 0:02:00]} 19. Nxg2 {[%clk 0:01:23]}  a5 {[%clk 0:01:45]} 20. Rac1 {[%clk 0:01:04]}  Bc5 {[%clk 0:01:44]} 21. Nxc5 {[%clk 0:00:57]}  Nxc5 {[%clk 0:01:42]} 22. Rxc5 {[%clk 0:00:46]}  Rxc5 {[%clk 0:01:37]} 23. Qd8+ {[%clk 0:00:47]}  Ne8 {[%clk 0:01:37]} 24. Bb8 {[%clk 0:00:48]}  h6 {[%clk 0:01:07]} 25. Bxa7 {[%clk 0:00:42]}  Qxa7 {[%clk 0:01:04]} 26. Qxe8+ {[%clk 0:00:42]}  Kh7 {[%clk 0:01:04]} 27. e4 {[%clk 0:00:03]}  Rc2 {[%clk 0:01:02]} 28. Nf4 {[%clk 0:00:01]}  Qf2# {[%clk 0:01:01]} 0-1

[Event "January 9 Late 2024"]
[Site "https://www.chess.com"]
[Date "2024.01.09"]
[Round "1"]
[White "Christiansen, Johan-Sebastian"]
[Black "Czerw, Dawid"]
[Result "1-0"]
[Board "64"]
[TimeControl "180+1"]
[WhiteFideId "1512668"]
[BlackFideId "1145746"]
[WhiteElo "2893"]
[BlackElo "2487"]
[WhiteTeam "NOR"]
[BlackTeam "POL"]
[WhiteClock "0:00:09"]
[BlackClock "0:00:01"]

1. e4 {[%clk 0:03:00]}  c5 {[%clk 0:03:00]} 2. Nf3 {[%clk 0:03:01]}  Nc6 {[%clk 0:03:00]} 3. b4 {[%clk 0:03:01]}  cxb4 {[%clk 0:02:58]} 4. d4 {[%clk 0:03:01]}  d5 {[%clk 0:02:59]} 5. exd5 {[%clk 0:03:02]}  Qxd5 {[%clk 0:03:00]} 6. c4 {[%clk 0:03:03]}  bxc3 {[%clk 0:02:59]} 7. Nxc3 {[%clk 0:03:03]}  Qa5 {[%clk 0:02:59]} 8. d5 {[%clk 0:03:04]}  Qxc3+ {[%clk 0:02:56]} 9. Bd2 {[%clk 0:03:04]}  Qa3 {[%clk 0:02:56]} 10. dxc6 {[%clk 0:03:04]}  bxc6 {[%clk 0:02:54]} 11. Qc2 {[%clk 0:02:47]}  Qd6 {[%clk 0:02:40]} 12. Rd1 {[%clk 0:02:44]}  Nf6 {[%clk 0:02:35]} 13. Bc4 {[%clk 0:02:34]}  e6 {[%clk 0:02:14]} 14. O-O {[%clk 0:02:34]}  Qc7 {[%clk 0:02:12]} 15. Bc3 {[%clk 0:02:21]}  Bd7 {[%clk 0:01:45]} 16. Be5 {[%clk 0:02:20]}  Qc8 {[%clk 0:01:39]} 17. Qe2 {[%clk 0:01:49]}  a5 {[%clk 0:01:34]} 18. Rd3 {[%clk 0:01:36]}  Be7 {[%clk 0:01:24]} 19. Rfd1 {[%clk 0:01:36]}  Nd5 {[%clk 0:01:17]} 20. Bxg7 {[%clk 0:01:34]}  Rg8 {[%clk 0:01:03]} 21. Be5 {[%clk 0:01:33]}  f6 {[%clk 0:00:57]} 22. Bg3 {[%clk 0:01:32]}  e5 {[%clk 0:00:55]} 23. Rxd5 {[%clk 0:01:24]}  cxd5 {[%clk 0:00:56]} 24. Bxd5 {[%clk 0:01:25]}  Be6 {[%clk 0:00:48]} 25. Bxa8 {[%clk 0:01:05]}  Qxa8 {[%clk 0:00:47]} 26. Nd4 {[%clk 0:00:57]}  Bg4 {[%clk 0:00:30]} 27. Qc4 {[%clk 0:00:56]}  Rg6 {[%clk 0:00:15]} 28. Ne6 {[%clk 0:00:42]}  Qb8 {[%clk 0:00:08]} 29. Rc1 {[%clk 0:00:25]}  Qb4 {[%clk 0:00:07]} 30. Qc6+ {[%clk 0:00:15]}  Kf7 {[%clk 0:00:06]} 31. Nc7 {[%clk 0:00:09]}  f5 {[%clk 0:00:06]} 32. Qe8+ {[%clk 0:00:09]}  Kf6 {[%clk 0:00:01]} 33. Nd5+ {[%clk 0:00:09]} 1-0

[Event "January 9 Late 2024"]
[Site "https://www.chess.com"]
[Date "2024.01.09"]
[Round "1"]
[White "Yirik, Volkan"]
[Black "Tang, Andrew"]
[Result "0-1"]
[Board "67"]
[TimeControl "180+1"]
[WhiteFideId "6300782"]
[BlackFideId "2059630"]
[WhiteElo "2481"]
[BlackElo "2885"]
[WhiteTeam "TUR"]
[BlackTeam "USA"]
[WhiteClock "0:01:17"]
[BlackClock "0:00:58"]

1. e4 {[%clk 0:03:00]}  b5 {[%clk 0:02:49]} 2. Bxb5 {[%clk 0:02:58]}  f5 {[%clk 0:02:49]} 3. exf5 {[%clk 0:02:56]}  c6 {[%clk 0:02:48]} 4. Qh5+ {[%clk 0:02:54]}  g6 {[%clk 0:02:42]} 5. fxg6 {[%clk 0:02:52]}  Bg7 {[%clk 0:02:42]} 6. gxh7+ {[%clk 0:02:28]}  Kf8 {[%clk 0:02:42]} 7. hxg8=Q+ {[%clk 0:02:28]}  Kxg8 {[%clk 0:02:43]} 8. Qe2 {[%clk 0:02:19]}  cxb5 {[%clk 0:02:40]} 9. Nf3 {[%clk 0:02:18]}  Nc6 {[%clk 0:02:37]} 10. O-O {[%clk 0:02:18]}  b4 {[%clk 0:02:34]} 11. c3 {[%clk 0:02:17]}  d5 {[%clk 0:02:32]} 12. d4 {[%clk 0:02:16]}  Qd6 {[%clk 0:02:30]} 13. Ne5 {[%clk 0:02:01]}  Nxe5 {[%clk 0:02:10]} 14. dxe5 {[%clk 0:02:00]}  Bxe5 {[%clk 0:02:10]} 15. f4 {[%clk 0:02:00]}  Bg7 {[%clk 0:02:07]} 16. Nd2 {[%clk 0:01:56]}  bxc3 {[%clk 0:01:47]} 17. Nf3 {[%clk 0:01:52]}  Ba6 {[%clk 0:01:44]} 18. Qf2 {[%clk 0:01:40]}  Bxf1 {[%clk 0:01:36]} 19. Kxf1 {[%clk 0:01:40]}  Rb8 {[%clk 0:01:16]} 20. Rb1 {[%clk 0:01:28]}  Qg6 {[%clk 0:00:58]} 21. Ra1 {[%clk 0:01:17]}  cxb2 {[%clk 0:00:58]} 0-1

[Event "January 9 Late 2024"]
[Site "https://www.chess.com"]
[Date "2024.01.09"]
[Round "1"]
[White "Grigoriants, Sergey"]
[Black "Sukandar, Irine Kharisma"]
[Result "1-0"]
[Board "68"]
[TimeControl "180+1"]
[WhiteFideId "4130804"]
[BlackFideId "7101937"]
[WhiteElo "2882"]
[BlackElo "2479"]
[WhiteTeam "HUN"]
[BlackTeam "INA"]
[WhiteClock "0:01:17"]
[BlackClock "0:00:11"]

1. d4 {[%clk 0:03:00]}  Nf6 {[%clk 0:02:57]} 2. c4 {[%clk 0:03:01]}  b6 {[%clk 0:02:38]} 3. Nc3 {[%clk 0:02:58]}  Bb7 {[%clk 0:02:38]} 4. d5 {[%clk 0:02:56]}  g6 {[%clk 0:02:34]} 5. e4 {[%clk 0:02:56]}  d6 {[%clk 0:02:33]} 6. Nf3 {[%clk 0:02:51]}  Bg7 {[%clk 0:02:33]} 7. Bd3 {[%clk 0:02:51]}  O-O {[%clk 0:02:33]} 8. O-O {[%clk 0:02:50]}  e5 {[%clk 0:02:32]} 9. Ne1 {[%clk 0:02:26]}  Nbd7 {[%clk 0:02:29]} 10. Be3 {[%clk 0:02:25]}  a5 {[%clk 0:02:27]} 11. a3 {[%clk 0:02:24]}  h6 {[%clk 0:02:26]} 12. f3 {[%clk 0:02:18]}  Qe7 {[%clk 0:02:20]} 13. b4 {[%clk 0:02:18]}  axb4 {[%clk 0:02:20]} 14. axb4 {[%clk 0:02:19]}  Nh5 {[%clk 0:02:11]} 15. Rxa8 {[%clk 0:02:10]}  Rxa8 {[%clk 0:02:10]} 16. Qd2 {[%clk 0:02:11]}  Kh7 {[%clk 0:02:09]} 17. Nc2 {[%clk 0:02:11]}  Nf4 {[%clk 0:02:06]} 18. Ra1 {[%clk 0:02:08]}  Rxa1+ {[%clk 0:02:03]} 19. Nxa1 {[%clk 0:02:09]}  Nxd3 {[%clk 0:02:01]} 20. Qxd3 {[%clk 0:02:09]}  Ba6 {[%clk 0:01:43]} 21. Nc2 {[%clk 0:02:04]}  Qf8 {[%clk 0:01:37]} 22. Na3 {[%clk 0:02:02]}  Nf6 {[%clk 0:01:21]} 23. Nab5 {[%clk 0:02:01]}  Ne8 {[%clk 0:01:21]} 24. Qc2 {[%clk 0:02:00]}  f5 {[%clk 0:01:20]} 25. Qa4 {[%clk 0:02:00]}  Bc8 {[%clk 0:01:13]} 26. Qa7 {[%clk 0:01:50]}  fxe4 {[%clk 0:01:12]} 27. Nxe4 {[%clk 0:01:47]}  Qe7 {[%clk 0:01:06]} 28. c5 {[%clk 0:01:46]}  dxc5 {[%clk 0:00:55]} 29. bxc5 {[%clk 0:01:47]}  Qd7 {[%clk 0:00:51]} 30. Nbc3 {[%clk 0:01:42]}  bxc5 {[%clk 0:00:47]} 31. Bxc5 {[%clk 0:01:41]}  Nf6 {[%clk 0:00:33]} 32. h3 {[%clk 0:01:33]}  Nxd5 {[%clk 0:00:32]} 33. Nxd5 {[%clk 0:01:31]}  Qxd5 {[%clk 0:00:32]} 34. Qxc7 {[%clk 0:01:31]}  Qe6 {[%clk 0:00:19]} 35. Kh2 {[%clk 0:01:21]}  Ba6 {[%clk 0:00:18]} 36. Bf8 {[%clk 0:01:17]}  Qg8 {[%clk 0:00:11]} 37. Nf6+ {[%clk 0:01:17]} 1-0

[Event "January 9 Late 2024"]
[Site "https://www.chess.com"]
[Date "2024.01.09"]
[Round "1"]
[White "Martinez Pla, Xavier"]
[Black "Kadric, Denis"]
[Result "1/2-1/2"]
[Board "69"]
[TimeControl "180+1"]
[WhiteFideId "32074271"]
[BlackFideId "14403803"]
[WhiteElo "2479"]
[BlackElo "2881"]
[WhiteTeam "ESP"]
[BlackTeam "MNE"]
[WhiteClock "0:00:12"]
[BlackClock "0:00:08"]

1. e4 {[%clk 0:03:00]}  d6 {[%clk 0:02:59]} 2. d4 {[%clk 0:03:00]}  Nf6 {[%clk 0:02:59]} 3. Nc3 {[%clk 0:03:00]}  Nbd7 {[%clk 0:02:59]} 4. Nge2 {[%clk 0:02:47]}  e5 {[%clk 0:02:59]} 5. h3 {[%clk 0:02:48]}  h5 {[%clk 0:02:58]} 6. Be3 {[%clk 0:02:47]}  c6 {[%clk 0:02:59]} 7. a4 {[%clk 0:02:46]}  Be7 {[%clk 0:02:58]} 8. Qd2 {[%clk 0:02:47]}  Qc7 {[%clk 0:02:55]} 9. a5 {[%clk 0:02:44]}  O-O {[%clk 0:02:48]} 10. f4 {[%clk 0:02:43]}  Re8 {[%clk 0:02:48]} 11. f5 {[%clk 0:02:36]}  exd4 {[%clk 0:02:46]} 12. Nxd4 {[%clk 0:02:33]}  Bf8 {[%clk 0:02:46]} 13. O-O-O {[%clk 0:02:28]}  Qxa5 {[%clk 0:02:44]} 14. Kb1 {[%clk 0:02:27]}  d5 {[%clk 0:02:34]} 15. g4 {[%clk 0:02:13]}  Bb4 {[%clk 0:02:33]} 16. Nb3 {[%clk 0:02:07]}  Bxc3 {[%clk 0:02:24]} 17. bxc3 {[%clk 0:02:06]}  Qa4 {[%clk 0:02:24]} 18. Bg2 {[%clk 0:02:00]}  Ne5 {[%clk 0:02:19]} 19. gxh5 {[%clk 0:01:57]}  Nc4 {[%clk 0:02:19]} 20. Qc1 {[%clk 0:01:58]}  Nxe4 {[%clk 0:01:55]} 21. Bxe4 {[%clk 0:01:56]}  Rxe4 {[%clk 0:01:54]} 22. Bd4 {[%clk 0:01:51]}  Na3+ {[%clk 0:01:52]} 23. Kb2 {[%clk 0:01:45]}  Nb5 {[%clk 0:01:52]} 24. Kb1 {[%clk 0:01:21]}  Nxd4 {[%clk 0:01:35]} 25. cxd4 {[%clk 0:01:18]}  Bxf5 {[%clk 0:01:32]} 26. Rhg1 {[%clk 0:01:18]}  Re2 {[%clk 0:00:53]} 27. Rxg7+ {[%clk 0:01:11]}  Kxg7 {[%clk 0:00:53]} 28. Qg5+ {[%clk 0:01:10]}  Kf8 {[%clk 0:00:53]} 29. Qxf5 {[%clk 0:01:08]}  Qb4 {[%clk 0:00:30]} 30. h6 {[%clk 0:00:28]}  Re1 {[%clk 0:00:29]} 31. Rxe1 {[%clk 0:00:28]}  Qxe1+ {[%clk 0:00:30]} 32. Kb2 {[%clk 0:00:29]}  Qh4 {[%clk 0:00:29]} 33. Nc5 {[%clk 0:00:20]}  Qxd4+ {[%clk 0:00:28]} 34. c3 {[%clk 0:00:19]}  Qxc5 {[%clk 0:00:22]} 35. h7 {[%clk 0:00:19]}  Ke7 {[%clk 0:00:22]} 36. Qe5+ {[%clk 0:00:19]}  Kd7 {[%clk 0:00:23]} 37. h8=Q {[%clk 0:00:19]}  Rxh8 {[%clk 0:00:23]} 38. Qxh8 {[%clk 0:00:20]}  Qf2+ {[%clk 0:00:23]} 39. Kb3 {[%clk 0:00:20]}  Qf1 {[%clk 0:00:20]} 40. h4 {[%clk 0:00:20]}  Ke7 {[%clk 0:00:18]} 41. h5 {[%clk 0:00:20]}  Qf6 {[%clk 0:00:18]} 42. Qh7 {[%clk 0:00:16]}  c5 {[%clk 0:00:16]} 43. h6 {[%clk 0:00:16]}  c4+ {[%clk 0:00:16]} 44. Kb2 {[%clk 0:00:12]}  b5 {[%clk 0:00:16]} 45. Qg7 {[%clk 0:00:11]}  Qf2+ {[%clk 0:00:16]} 46. Kb1 {[%clk 0:00:10]}  Qe1+ {[%clk 0:00:15]} 47. Kb2 {[%clk 0:00:10]}  Qd2+ {[%clk 0:00:15]} 48. Kb1 {[%clk 0:00:11]}  Qd1+ {[%clk 0:00:16]} 49. Kb2 {[%clk 0:00:11]}  Qd2+ {[%clk 0:00:16]} 50. Kb1 {[%clk 0:00:11]}  Qe1+ {[%clk 0:00:17]} 51. Kb2 {[%clk 0:00:12]}  Qd2+ {[%clk 0:00:08]} 1/2-1/2

[Event "January 9 Late 2024"]
[Site "https://www.chess.com"]
[Date "2024.01.09"]
[Round "1"]
[White "Grochal, Joey"]
[Black "Pakleza, Zbigniew"]
[Result "0-1"]
[Board "71"]
[TimeControl "180+1"]
[WhiteFideId "1019945"]
[BlackFideId "1119290"]
[WhiteElo "2475"]
[BlackElo "2871"]
[WhiteTeam "NED"]
[BlackTeam "POL"]
[WhiteClock "0:00:14"]
[BlackClock "0:00:07"]

1. e4 {[%clk 0:03:00]}  d6 {[%clk 0:02:58]} 2. d4 {[%clk 0:03:00]}  Nf6 {[%clk 0:02:59]} 3. Nc3 {[%clk 0:03:00]}  c6 {[%clk 0:02:59]} 4. a4 {[%clk 0:03:00]}  a5 {[%clk 0:02:59]} 5. h3 {[%clk 0:02:58]}  Nbd7 {[%clk 0:02:57]} 6. Be3 {[%clk 0:02:58]}  e5 {[%clk 0:02:57]} 7. Nf3 {[%clk 0:02:58]}  Be7 {[%clk 0:02:57]} 8. g4 {[%clk 0:02:48]}  O-O {[%clk 0:02:57]} 9. Bg2 {[%clk 0:02:48]}  Re8 {[%clk 0:02:47]} 10. dxe5 {[%clk 0:02:47]}  dxe5 {[%clk 0:02:45]} 11. Nd2 {[%clk 0:02:41]}  g6 {[%clk 0:02:16]} 12. Nc4 {[%clk 0:02:40]}  Qc7 {[%clk 0:02:16]} 13. Bh6 {[%clk 0:02:21]}  Nb6 {[%clk 0:01:53]} 14. Ne3 {[%clk 0:02:19]}  Be6 {[%clk 0:01:51]} 15. O-O {[%clk 0:02:16]}  Nc4 {[%clk 0:01:47]} 16. Nxc4 {[%clk 0:02:15]}  Bxc4 {[%clk 0:01:48]} 17. Re1 {[%clk 0:02:15]}  Qb6 {[%clk 0:01:34]} 18. Qc1 {[%clk 0:02:15]}  Bc5 {[%clk 0:01:29]} 19. Be3 {[%clk 0:02:15]}  Nd7 {[%clk 0:01:20]} 20. b3 {[%clk 0:02:11]}  Be6 {[%clk 0:01:18]} 21. Bxc5 {[%clk 0:02:09]}  Qxc5 {[%clk 0:01:11]} 22. Qe3 {[%clk 0:02:10]}  Red8 {[%clk 0:00:51]} 23. Rad1 {[%clk 0:02:09]}  Qxe3 {[%clk 0:00:51]} 24. Rxe3 {[%clk 0:02:09]}  Nc5 {[%clk 0:00:50]} 25. Ree1 {[%clk 0:02:09]}  Kf8 {[%clk 0:00:49]} 26. Kf1 {[%clk 0:02:08]}  Ke7 {[%clk 0:00:48]} 27. Ke2 {[%clk 0:02:08]}  g5 {[%clk 0:00:41]} 28. Ke3 {[%clk 0:02:08]}  f6 {[%clk 0:00:38]} 29. Ne2 {[%clk 0:01:59]}  Na6 {[%clk 0:00:33]} 30. Rb1 {[%clk 0:01:36]}  Nb4 {[%clk 0:00:30]} 31. Rec1 {[%clk 0:01:33]}  Rd7 {[%clk 0:00:23]} 32. Ng3 {[%clk 0:01:28]}  Rad8 {[%clk 0:00:22]} 33. c3 {[%clk 0:01:21]}  Rd2 {[%clk 0:00:17]} 34. Bf1 {[%clk 0:01:20]}  Nc2+ {[%clk 0:00:17]} 35. Rxc2 {[%clk 0:01:20]}  Rxc2 {[%clk 0:00:18]} 36. c4 {[%clk 0:01:09]}  Rc3+ {[%clk 0:00:05]} 37. Ke2 {[%clk 0:01:08]}  Rc2+ {[%clk 0:00:05]} 38. Ke1 {[%clk 0:01:07]}  Ra2 {[%clk 0:00:04]} 39. Be2 {[%clk 0:01:00]}  Kd6 {[%clk 0:00:04]} 40. Rd1+ {[%clk 0:00:49]}  Kc7 {[%clk 0:00:04]} 41. Rc1 {[%clk 0:00:47]}  Rb2 {[%clk 0:00:04]} 42. Bd1 {[%clk 0:00:43]}  Rd4 {[%clk 0:00:02]} 43. Bc2 {[%clk 0:00:40]}  Kb6 {[%clk 0:00:02]} 44. Ne2 {[%clk 0:00:39]}  Rd7 {[%clk 0:00:03]} 45. Ng1 {[%clk 0:00:27]}  Kc5 {[%clk 0:00:03]} 46. Nf3 {[%clk 0:00:27]}  Kb4 {[%clk 0:00:03]} 47. Nd2 {[%clk 0:00:27]}  Ra2 {[%clk 0:00:02]} 48. Bb1 {[%clk 0:00:27]}  Rb2 {[%clk 0:00:01]} 49. Bc2 {[%clk 0:00:27]}  Bf7 {[%clk 0:00:01]} 50. Nf1 {[%clk 0:00:22]}  Bg6 {[%clk 0:00:02]} 51. Ne3 {[%clk 0:00:20]}  Ra2 {[%clk 0:00:02]} 52. f3 {[%clk 0:00:19]}  Ka3 {[%clk 0:00:03]} 53. Nd1 {[%clk 0:00:18]}  Kb4 {[%clk 0:00:02]} 54. Ne3 {[%clk 0:00:18]}  b6 {[%clk 0:00:03]} 55. Nd1 {[%clk 0:00:18]}  h5 {[%clk 0:00:04]} 56. Ne3 {[%clk 0:00:17]}  hxg4 {[%clk 0:00:04]} 57. hxg4 {[%clk 0:00:18]}  Rh7 {[%clk 0:00:04]} 58. Kf2 {[%clk 0:00:18]}  Rh2+ {[%clk 0:00:05]} 59. Ng2 {[%clk 0:00:18]}  Bf7 {[%clk 0:00:04]} 60. Kg3 {[%clk 0:00:18]}  Rh8 {[%clk 0:00:04]} 61. Ne3 {[%clk 0:00:19]}  Rd8 {[%clk 0:00:04]} 62. Rh1 {[%clk 0:00:18]}  Rd2 {[%clk 0:00:04]} 63. Rh7 {[%clk 0:00:19]}  Be6 {[%clk 0:00:04]} 64. Bd1 {[%clk 0:00:18]}  Rd3 {[%clk 0:00:04]} 65. Re7 {[%clk 0:00:18]}  Rxe3 {[%clk 0:00:03]} 66. Rxe6 {[%clk 0:00:19]}  Re1 {[%clk 0:00:03]} 67. Rxc6 {[%clk 0:00:19]}  Rg1+ {[%clk 0:00:04]} 68. Kh3 {[%clk 0:00:18]}  Rh1+ {[%clk 0:00:05]} 69. Kg3 {[%clk 0:00:19]}  Rg1+ {[%clk 0:00:06]} 70. Kh3 {[%clk 0:00:19]}  Rxd1 {[%clk 0:00:07]} 71. Rxb6+ {[%clk 0:00:19]}  Kc3 {[%clk 0:00:06]} 72. c5 {[%clk 0:00:19]}  Rdd2 {[%clk 0:00:06]} 73. f4 {[%clk 0:00:14]}  exf4 {[%clk 0:00:07]} 0-1